Cogmind - Beta 12 @@@ ROGUE MODE // 2023.04.19 @ 15:49:40 Player: ZLD1 Result: Destroyed by G-34 Mercenary with Small Laser Performance ------------- Evolutions (1) 500 Regions Visited (2) 400 Robots Destroyed (49) 245 Value Destroyed (1142) 1142 Prototype IDs (0) 0 Alien Tech Used (0) 0 Bonus (122) 122 TOTAL SCORE: 2409 Bonus ------- High Alert Combat Kills 122 Cogmind --------- Core Integrity 0/400 Matter 260/300 Energy 125/125 System Corruption 0% Temperature Cool (6) Movement Walking (130) Location -9/Materials Parts ------- > --- POWER (1) -------- Light Ion Engine > --- PROPULSION (2) --- Titanium Leg Titanium Leg > --- UTILITY (4) ------ Medium Storage Unit Trap Scanner Signal Interpreter Utility Shielding > --- WEAPON (2) ------- Heavy Hammer Heavy Hammer > --- INVENTORY (10) --- Light Ion Engine Improved Ion Engine Medium Storage Unit Machine Analyzer Sensor Array Signal Interpreter Hardened Light Armor Plating Spread Laser Rocket Launcher Rocket Launcher Peak State ------------ > --- POWER ------------ Light Ion Engine > --- PROPULSION ------- Titanium Leg Titanium Leg > --- UTILITY ---------- Medium Storage Unit Trap Scanner Signal Interpreter Utility Shielding > --- WEAPON ----------- Heavy Hammer Heavy Hammer > --- INVENTORY -------- Light Ion Engine Improved Ion Engine Medium Storage Unit Machine Analyzer Sensor Array Signal Interpreter Hardened Light Armor Plating Spread Laser Rocket Launcher Rocket Launcher [Rating: 18] Favorites ----------- Power Ion Engine Engine Ion Engine Propulsion Aluminum Leg Treads Light Treads Leg Aluminum Leg Utility Signal Interpreter Device Heat Sink Storage Medium Storage Unit Processor Signal Interpreter Protection Utility Shielding Weapon Heavy Hammer Energy Gun Small Laser Ballistic Gun Light Assault Rifle Impact Weapon Heavy Hammer Build | -11 -10 -9 ------- Run | Jun Mat Mat Slots Evolved 2 | . . 2 Power . | . . . Propulsion . | . . . Utility 2 | . . 2 Weapon . | . . . Parts Attached 32 | 6 3 23 Power 5 | 1 . 4 Engine 5 | 1 . 4 Core . | . . . Reactor . | . . . Propulsion 12 | 2 . 10 Treads 2 | . . 2 Leg 10 | 2 . 8 Wheel . | . . . Hover . | . . . Flight . | . . . Utility 9 | 1 2 6 Device 2 | . . 2 Storage 2 | 1 . 1 Processor 1 | . 1 . Hackware . | . . . Protection 4 | . 1 3 Artifact . | . . . Weapon 6 | 2 1 3 Energy Gun 1 | . 1 . Energy Cannon . | . . . Ballistic Gun 2 | 2 . . Ballistic Cannon . | . . . Launcher . | . . . Special Weapon . | . . . Impact Weapon 3 | . . 3 Slashing Weapon . | . . . Piercing Weapon . | . . . Special Melee Weapon . | . . . Unidentified Prototypes . | . . . Parts Lost 8 | . . 8 Power 4 | . . 4 Propulsion 2 | . . 2 Utility 1 | . . 1 Weapon 1 | . . 1 Highest Loss Streak 2 | . . 2 To Critical Strikes . | . . . Average Slot Usage (%) 95 | . 97 95 Engine 9 | . 14 9 Treads 1 | . . 1 Leg 21 | . 28 20 Device 9 | . . 10 Storage 11 | . 14 11 Processor 10 | . 6 11 Protection 9 | . 6 10 Energy Gun 2 | . 1 2 Ballistic Gun 5 | . 26 2 Impact Weapon 14 | . . 16 Naked Turns . | . . . Heaviest Build 25 | 13 18 25 Greatest Support 40 | 20 20 40 Greatest Overweight (x) 2 | . . 2 Average Overweight (x) . | . . . Largest Inventory Capacity 10 | 8 8 10 Average Capacity 9 | 5 8 9 Most Carried 10 | 5 8 10 Average Carried 9 | 2 6 9 Final Capacity 10 | 8 8 10 Final Carried 10 | 4 8 10 Class Distribution -------------------- 52% | Mutant 47% | Scavenger-Mutant Dominant Class ---------------- Mutant | -10/Materials Scavenger-Mutant | -9/Materials Resources | -11 -10 -9 ----------- Run | Jun Mat Mat Matter Collected 554 | 245 95 214 Remotely . | . . . Salvage Created 1579 | . 86 1493 Parts 70 | . 8 62 Haulers Intercepted 1 | . . 1 Recyclers Shooed . | . . . Parts Field Recycled . | . . . Retrieved Matter . | . . . Parts Self-Destructed . | . . . Prevented . | . . . Kills | -11 -10 -9 ------- Run | Jun Mat Mat Combat Hostiles Destroyed 41 | . 4 37 Melee 18 | . . 18 Guns 7 | . 4 3 Classes Destroyed 8 | . 2 6 Worker 1 | . . 1 Hauler 1 | . . 1 Recycler 3 | . . 3 Mechanic 1 | . . 1 Watcher 2 | . 1 1 Swarmer 17 | . 4 13 Grunt 17 | . . 17 Sentry 7 | . . 7 Best Kill Streak 8 | . 3 8 Combat Bots Only 6 | . 3 6 Max Kills in Single Turn 1 | . 1 1 Gunslinging . | . . . Exploded . | . . . Melee 1 | . . 1 Uniques/NPCs Destroyed . | . . . Combat | -11 -10 -9 -------- Run | Jun Mat Mat Damage Taken 1867 | . 217 1650 Core 441 | . 31 410 Absorbed by Shields . | . . . Redirected to Shielding 34 | . . 34 Regen/Repaired (Parts) 82 | . . 82 Core Remaining (%) 93 | 100 87 . Volleys Fired 50 | . 16 34 Largest 2 | . 2 2 Hottest 60 | . 40 60 Shots Fired 93 | . 32 61 Gun 93 | . 32 61 Cannon . | . . . Launcher . | . . . Special . | . . . Kinetic 66 | . 32 34 Thermal 27 | . . 27 Explosive . | . . . Electromagnetic . | . . . Robot Hit Streak 16 | . 6 16 Robot Miss Streak 3 | . 3 1 Penetration Max . | . . . Secondary Targets . | . . . Shots Hit Robots 128 | . 16 112 Core Hits 32 | . 6 26 Critical Kills 7 | . . 7 Critical Parts Destroyed 10 | . . 10 Critical Strikes 17 | . . 17 Smash 17 | . . 17 Melee Attacks 84 | . . 84 Impact 84 | . . 84 Slashing . | . . . Piercing . | . . . Sneak Attacks 7 | . . 7 Combat Hostiles . | . . . Follow-up Attacks 9 | . . 9 Damage Inflicted 3552 | . 176 3376 Guns 666 | . 173 493 Cannons . | . . . Explosions . | . . . Melee 2883 | . . 2883 Ramming 3 | . 3 . Kinetic 400 | . 173 227 Thermal 266 | . . 266 Explosive . | . . . Electromagnetic . | . . . Impact 2883 | . . 2883 Slashing . | . . . Piercing . | . . . Highest Corruption . | . . . Average Corruption . | . . . Corruption Purged . | . . . Corruption Blocked . | . . . Overload Shots . | . . . Overflow Damage 932 | . . 932 Projectiles . | . . . Explosions . | . . . Melee 932 | . . 932 Knockbacks 12 | . . 12 Impact 12 | . . 12 Kinetic . | . . . Secondary . | . . . Self-Inflicted Damage . | . . . Shots . | . . . Rammed . | . . . Targets Rammed 1 | . 1 . Kicked 1 | . 1 . Crushed . | . . . Highest Temperature 20 | . 20 14 Average Temperature 8 | . 9 7 Received Heat Transfer 570 | . . 570 Siege Activations . | . . . Robots Corrupted . | . . . Combat Hostiles . | . . . Parts Fried 21 | . . 21 Impact Corruptions 37 | . . 37 Robots Melted . | . . . Combat Hostiles . | . . . Parts Melted 1 | . . 1 Heat Transferred 600 | . . 600 Parts Sabotaged . | . . . Parts Stolen . | . . . Parts Stripped . | . . . Power Chain Reactions . | . . . Missiles Intercepted . | . . . Alert | -11 -10 -9 ------- Run | Jun Mat Mat Peak Influence 747 | . 128 747 Initial 53 | . . 53 Average 248 | . 63 287 Maximum Alert Level 3 | . . 3 Low Security (%) 50 | 100 100 40 Level 1 18 | . . 22 Level 2 29 | . . 35 Level 3 1 | . . 1 Level 4 . | . . . Level 5 . | . . . High Security . | . . . Max Security . | . . . Squads Dispatched 6 | . . 6 Investigation 3 | . . 3 Extermination . | . . . Reinforcement 3 | . . 3 Assault . | . . . Garrison . | . . . Intercept . | . . . Searches Triggered . | . . . Construction Impeded 1 | . . 1 Haulers Reinforced . | . . . Active Scanning Responses . | . . . Cargo Convoy Interrupts . | . . . Stealth | -11 -10 -9 --------- Run | Jun Mat Mat Distress Signals 6 | . . 6 Communications Jammed . | . . . Distress Signals . | . . . Times Spotted 62 | . 8 54 Peak Tracking Total 7 | . 3 7 Tactical Retreats 4 | . . 4 Traps | -11 -10 -9 ------- Run | Jun Mat Mat Traps Triggered 2 | . . 2 Indirectly . | . . . Trap Hack Attempts . | . . . Triggered . | . . . Disarmed . | . . . Reprogrammed . | . . . Reused . | . . . Traps Extracted . | . . . Installed . | . . . Triggered . | . . . Machines | -11 -10 -9 ---------- Run | Jun Mat Mat Machines Disabled . | . . . Max in Single Turn . | . . . Machines Repaired . | . . . Machines Sabotaged . | . . . Overloaded Fab Kills . | . . . Hacking | -11 -10 -9 --------- Run | Jun Mat Mat Machines Accessed 1 | . . 1 Terminals . | . . . Fabricators . | . . . Repair Stations 1 | . . 1 Recycling Units . | . . . Scanalyzers . | . . . Garrison Access . | . . . Total Hacks 5 | . . 5 Successful 3 | . . 3 Failed 2 | . . 2 Catastrophic . | . . . Database Lockouts . | . . . Manual . | . . . Terminals . | . . . Fabricators . | . . . Repair Stations 5 | . . 5 Recycling Units . | . . . Scanalyzers . | . . . Garrison Access . | . . . Terminal Hacks . | . . . Fabricator Hacks . | . . . Repair Station Hacks 3 | . . 3 Scan Component 2 | . . 2 Repair 1 | . . 1 Recycling Unit Hacks . | . . . Scanalyzer . | . . . Garrison Access Hacks . | . . . Unauthorized Hacks . | . . . Terminals . | . . . Fabricators . | . . . Repair Stations . | . . . Recycling Units . | . . . Scanalyzers . | . . . Garrison Access . | . . . Data Cores Recovered . | . . . Used . | . . . Hacking Detections 1 | . . 1 Full Trace Events 1 | . . 1 Feedback Events . | . . . Feedback Blocked . | . . . Robot Schematics Acquired . | . . . Robots Built . | . . . Authchips . | . . . Time . | . . . Total Robot Build Rating . | . . . Part Schematics Acquired . | . . . Parts Built . | . . . Authchips . | . . . Time . | . . . Total Part Build Rating . | . . . Parts Repaired 1 | . . 1 Time 32 | . . 32 Parts Recycled . | . . . Recycled Matter . | . . . Retrieved Matter . | . . . Retrieved Components . | . . . Parts Scanalyzed . | . . . Part Schematics Acquired . | . . . Parts Damaged . | . . . Bothacking | -11 -10 -9 ------------ Run | Jun Mat Mat Used RIF Installer . | . . . Robots Hacked . | . . . Non-combat . | . . . Combat . | . . . Robot Hacks Applied . | . . . Relay Couplers Released . | . . . Fabnet Peak Effective % . | . . . Robots Rewired . | . . . Allies Hacked . | . . . Hacks Repelled . | . . . Allies | -11 -10 -9 -------- Run | Jun Mat Mat Total Allies . | . . . Largest Group . | . . . Highest-Rated Group . | . . . Highest-Rated Ally . | . . . Total Orders . | . . . Ally Attacks . | . . . Total Damage . | . . . Kills . | . . . Allies Corrupted . | . . . Allies Melted . | . . . Intel | -11 -10 -9 ------- Run | Jun Mat Mat Robot Analysis Total . | . . . Derelict Logs Recovered . | . . . Drone Launches . | . . . Drone Recoveries . | . . . Exploration | -11 -10 -9 ------------- Run | Jun Mat Mat Turns Passed 1742 | 69 214 1459 Spaces Moved 796 | 51 128 617 Core 10 | 10 . . Treads 26 | . . 26 Legs 760 | 41 128 591 Wheels . | . . . Hover . | . . . Flight . | . . . Fastest Speed 50 | 50 120 120 Average Speed 155 | 106 120 166 Slowest Speed 260 | 120 120 260 Overloaded Moves . | . . . Propulsion Burnouts . | . . . Robots Hopped . | . . . Cave-ins Triggered . | . . . Exploration Rate (%) 37 | 4 38 71 Regions Visited 2 Branch Regions . Pre-discovered Areas . | . . . Known Exits Taken 1 | . 1 . Unknown Exits Taken 1 | 1 . . Scrap Searched . | . . . Spaces Dug . | . . . Terrain Destroyed . | . . . Melee . | . . . Projectile . | . . . AOE . | . . . Terrain Rammed . | . . . Walls Destroyed . | . . . Machines Disabled . | . . . Actions | -11 -10 -9 --------- Run | Jun Mat Mat Total 1086 | 66 160 860 Wait 96 | . 2 94 Move 794 | 50 127 617 Hop . | . . . Pick Up 26 | 10 8 8 Fast Attach 11 | . . 11 Attach 12 | 6 2 4 Detach . | . . . Swap 9 | . 1 8 Drop 14 | . 3 11 Fire 50 | . 16 34 Melee 73 | . . 73 Ram . | . . . Kick 1 | . 1 . Crush . | . . . Escape Stasis . | . . . Rewire . | . . . Trap . | . . . Miscellaneous . | . . . Route ------- -11/Junkyard -10/Materials -9/Materials (discovered 3 exits: *Mat x3) History --------- Turn | Location | Event 2 | -11/Junkyard | Met Revision 17 3 | -11/Junkyard | Discovered new exit (range 15) 70 | -11/Junkyard | Entered Materials 256 | -10/Materials | Discovered new exit (range 16) 280 | -10/Materials | Identified exit to Materials 284 | -10/Materials | Entered another Materials area 284 | -9/Materials | Evolved 2 slots: Utility x2 313 | -9/Materials | Build established: Mutant 728 | -9/Materials | Discovered new exit (range 7) 738 | -9/Materials | Identified exit to Materials 856 | -9/Materials | Build established: Scavenger-Mutant 909 | -9/Materials | Core integrity fell below 50% 1035 | -9/Materials | Discovered exit to Materials (range 9) 1406 | -9/Materials | Core integrity fell below 20% 1531 | -9/Materials | Repaired Hvy. Hammer 1695 | -9/Materials | Build established: Mutant 1695 | -9/Materials | Discovered exit to Materials (range 15) 1743 | -9/Materials | Destroyed by G-34 Mercenary with Small Laser Last Messages --------------- 01670_ Dropped Aluminum Leg. 01673_ Dropped Heat Sink. 01674_ Acquired Trap Scanner. 01681_ K-01 Serf collects debris. 01693_ W-16 Scout sends out distress signal. 01695_ EXIT=FOUND: MATERIALS 01696_ K-01 Serf collects debris. 01709_ G-34 Mercenary suffers critical hit (Smash). 01709_ Destroyed Sml. Laser. 01709_ G-34 Mercenary system corrupted by crushing effect. 01709_ G-34 Mercenary destroyed. 01717_ G-34 Mercenary suffers critical hit (Smash). 01717_ G-34 Mercenary destroyed. 01735_ Hvy. Hammer follow-up attack on G-47 Trooper. 01735_ Destroyed Lgt. Nuclear Core. 01735_ G-47 Trooper system corrupted by crushing effect. 01735_ G-47 Trooper knocked back. 01736_ G-47 Trooper system terminally corrupted. 01736_ Imp. Heat Sink fried. 01736_ Aluminum Leg fried. Map ----- +----------------------------------------------------+ | ??????????????????????????????????????????? | | ??????????????????????????????????????????? | | ??????????????????????????????????????????? | | ??????????????????????????????????????????? | | ??????????????????????????????????????????? | | ??????????????????????????????????????????? | | ???????############?#########?????????????? | | ?????? #? =??????????????? | | ??????< #? ??????????????? | | ??????? ]][ #?? ???????????????? | | ????????# ][ #?? ???????????????# | | ????????# ][ #??? ????????????????# | | ????????# #??? ??????#### ##???# | | ????????# #####+######## ##### | | ????????# """ | | ????????# """ T | | ??####### """ | | ? # = #### %=####### ##### | | # """" # !% #??# [ #####?##??###???? | | # """" # """ #??# !!#???????????? | | # """" !# """ #??# !! #???????????? | | # # """ =#??# ==#???????????? | | # """" + =! !%#??# ==#???????????? | | # """" # % % =#??# !!#???????????? | | # """" ### =##g##### !!#???????????? | | # #?# *#% @ # #####???????????? | | # #?# =+% """ # #???????????????? | | # ! #?######% "Y" + #???????????????? | | ####+####??????# # #???????????????? | | ???#%#?????????# !! = # #???????????????? | | ???#%#######???# !%! # #???????????????? | | ???#[ !! #???##+##### #???????????????? | | ???# !! #??????????# #????????????#### | | ???# ! #??????????# #????????????# | | ???# #??????????# #????????????# | | ???# #?????????? #????????????#! " | | ???# ##????????? #????????????# " | | ???# ?? #????????????# " | | ?###+############?????# #????????????# | | ?# #?????????????? #????????######## | | ?# """ #?????????????# #????????# | | ?# """ #?????????????# ?????????# | | ?# """ #?????????????# #????????# | | ?# """ ##########????# ###+##???# | | ?# """ # #???# # #######/#+## | | ?# # #???# # | | ?# # """ """ ##### # ## | | ?# [# """ """ + # ######## ##? | | ?# """ # """ """ # #???????# #?? | | ?# "R # # #???????# #?? | +----------------------------------------------------+ Best States ------------- Heat Dissipation 38 Energy Generation 12 Energy Capacity 265 Matter Stores 300 Matter Capacity 300 Sight Range 16 Terrain Scan Density 10 Armor Coverage 150 Utility Shielding 33 Evasion (%) 55 Recoil Reduction 2 Item Schematics ----------------- None Robot Schematics ------------------ None Fabricated ------------ Nothing Alien Tech Used ----------------- None Achievements -------------- None Challenges ------------ None Game ------ Seed ThiefBombMagmablaster Manual? 0 Play Time 00:15:52 Cumulative 38.0 hours Start 2023.04.19 @ 15:32:06 End 2023.04.19 @ 15:49:40 Sessions 1 Manual Loads 0 Difficulty Rogue Special Mode None Game No. 84 Rogue 84 Adventurer 0 Explorer 0 Win Type - Total 0 Types 0/0/0/0/0/0/0/0/0 Lore% 24 Gallery% 39 Achievement% 29 Wizard Run 0 Options --------- ASCII 0 Keyboard 0 Movement Mouse Keybinds 0 Fullscreen 1 Font 24/Smallcaps Map View 64x52 Tactical HUD 1 Map Filters NONE Filters NONE Steam 1 RUN: f6ccc1b5-0c1e-46ab-969c-e4ad397659c1